[Event "Silves Open 2025"]
[Site "Fissul"]
[Date "2025.03.03"]
[Round "4.10"]
[White "Serarols Mabras, Bernat"]
[Black "Sanchez Guirado, Francisco"]
[Result "1-0"]
[Annotator "TA"]
[ECO "A55"]
[WhiteElo "2311"]
[BlackElo "2286"]
[PlyCount "195"]
[EventDate "2025.03.03"]
[EventType "swiss"]
[EventCountry "POR"]
[SourceTitle "playchess.com"]
[Source "ChessBase"]
[SourceQuality "1"]
[TimeControl "5400+30"]

{[%evp 18,195,66,61,73,71,91,81,88,81,137,110,116,107,116,76,118,115,118,103,121,119,108,116,116,120,126,118,139,121,141,96,87,89,95,103,89,81,77,66,63,61,62,70,79,91,122,122,122,122,122,122,122,122,116,116,129,130,129,127,243,243,243,235,235,160,160,97,107,0,160,136,238,238,238,144,143,133,306,167,150,151,187,155,195,168,153,59,59,59,59,59,67,72,197,86,100,59,100,59,67,74,95,59,74,59,74,59,59,59,62,60,72,61,72,0,100,52,52,52,52,66,52,65,60,66,59,52,66,52,52,66,52,52,52,52,58,52,202,58,189,52,192,52,52,52,190,52,52,52,154,52,65,50,45,0,43,36,37,36,36,36,36,37,39,36,101,36,41,41,63,43,43,8,44,44,112,2,321,314]} 1. d4 {[%emt 0:05:06]} Nf6 {[%emt 0:00:14]} 2. c4 {[%emt 0:00:04]} d6 {[%emt 0:00:09]} 3. Nc3 {[%emt 0:02:10]} Nbd7 {[%emt 0:00:11]} 4. e4 {[%emt 0:00:38]} e5 {[%emt 0:00:08]} 5. Nf3 {[%emt 0:00:12]} Be7 {[%emt 0:00:13]} 6. Be2 {[%emt 0:00:29]} O-O {[%emt 0:00:12]} 7. O-O {[%emt 0:00:03]} c6 {[%emt 0:00:13]} 8. h3 {[%emt 0:00:23]} Qc7 {[%emt 0:01:03]} 9. Be3 {[%emt 0:00:16]} Re8 {[%emt 0:00:57]} 10. d5 {[%emt 0:08:41]} c5 {[%emt 0:06:34] A55: Old Indian Defence with Nf3 and e4.} 11. Ne1 {[%emt 0:01:04]} Bf8 {[%emt 0:03:37]} 12. Nd3 {[%emt 0:01:54]} h6 $146 {[%emt 0:03:52] White is better.} (12... a6 13. Rb1 h6 14. g4 Nh7 15. f4 exf4 16. Bxf4 Ng5 17. Nf2 Ne5 18. Kg2 Nh7 {½-½ Belliard Alonzo,L (2220)-De Leon,J DOM-ch Santo Domingo 2010 (1)}) 13. b3 {[%emt 0:13:10]} g6 {[%emt 0:01:41]} (13... Be7 $142) 14. g3 {[%emt 0:01:48]} a6 {[%emt 0:00:28][%cal Ob7b5]} 15. a4 {[%emt 0:00:13]} Bg7 {[%emt 0:00:34]} 16. Rc1 {[%emt 0:03:43]} Nf8 {[%emt 0:02:11]} 17. Kg2 {[%emt 0:01:56]} g5 {[%emt 0:01:32]} 18. Bg4 {[%emt 0:09:20]} Nxg4 {[%emt 0:17:38]} 19. hxg4 {[%emt 0:00:16]} Bd7 {[%emt 0:00:30]} 20. f3 {[%emt 0:05:36]} Reb8 {[%emt 0:02:23]} 21. Rf2 {[%emt 0:03:13]} b6 {[%emt 0:07:20] White has space advantage and is better} 22. Rb2 {[%emt 0:07:26]} b5 {[%emt 0:04:01]} 23. cxb5 {[%emt 0:07:22]} axb5 {[%emt 0:00:14]} 24. Nxb5 {[%emt 0:01:09]} Bxb5 {[%emt 0:00:10]} 25. axb5 {[%emt 0:00:02] White plays on the queen side and is better} Rxb5 {[%emt 0:00:21]} 26. b4 {[%emt 0:01:54][%cal Rb4c5]} Qb7 {[%emt 0:06:20]} 27. Qd2 {[%emt 0:00:24][%cal Re3c5]} Ra3 {[%emt 0:03:46]} 28. Rc3 {[%emt 0:07:23]} (28. bxc5 $2 Rxd3 29. Qxd3 Rxb2+ $19) 28... cxb4 {[%emt 0:05:40] [#]} 29. Rxb4 {[%emt 0:00:24]} Rxc3 {[%emt 0:07:50]} 30. Qxc3 {[%emt 0:02:00]} Rxb4 {[%emt 0:00:32]} 31. Nxb4 {[%emt 0:01:33]} Ng6 {[%emt 0:01:17]} 32. Bf2 {[%emt 0:01:02]} Bf8 {[%emt 0:00:10]} 33. Nc2 {[%emt 0:01:32]} Ne7 {[%emt 0:02:47]} 34. Ne3 {[%emt 0:00:18]} Kh7 {[%emt 0:02:46]} 35. Qc4 {[%emt 0:01:08]} Kg8 {[%emt 0:00:34]} 36. Qa4 {[%emt 0:00:07]} Qc8 {[%emt 0:05:34]} 37. Nc4 {[%emt 0:01:56]} Qc7 {[%emt 0:02:25]} 38. Qa6 {[%emt 0:00:59]} Nc8 {[%emt 0:01:28]} (38... Kh7 $16 39. Bb6 (39. Qxd6 Qxc4 40. Qf6 Ng6 $17) (39. Nxd6 Nxd5 40. Ne8 Qd8 $14) 39... Qc8) 39. Qc6 $18 {[%emt 0:00:52] Black is weak on the light squares} Qd8 {[%emt 0:00:31]} 40. Qb7 {[%emt 0:02:07]} Kg7 {[%emt 0:02:14]} 41. Qb8 {[%emt 0:03:59]} Qd7 {[%emt 0:00:31]} 42. Na5 {[%emt 0:01:16] White is much more active.} (42. Ne3) 42... Kg6 {[%emt 0:01:09]} 43. Nc4 {[%emt 0:01:44]} (43. Be1 $142) 43... Kg7 $1 $16 {[%emt 0:00:13]} 44. Qa8 {[%emt 0:00:24]} Qc7 {[%emt 0:02:50]} (44... Ne7 $16 45. Qa5 Kh8) 45. Qc6 $18 {[%emt 0:01:18]} Qd8 {[%emt 0:00:47]} 46. Be1 {[%emt 0:02:30]} Na7 {[%emt 0:01:32]} 47. Qb7 {[%emt 0:00:27]} Qe7 $2 {[%emt 0:01:16] [#]} (47... Qc8 $16 {was called for.} 48. Qxc8 (48. Qxa7 Qxc4 49. Bf2 Qb3 $11) 48... Nxc8) 48. Nxd6 {[%emt 0:00:55]} Qxd6 {[%emt 0:00:14]} 49. Qxa7 {[%emt 0:00:01][%mdl 4096] Endgame KQB-KQB. White is a pawn up.} Be7 {[%emt 0:00:57]} 50. Bc3 {[%emt 0:00:59]} f6 {[%emt 0:01:56]} 51. Be1 {[%emt 0:00:08]} Kf7 {[%emt 0:01:32]} 52. Bf2 {[%emt 0:00:14]} (52. Kf2 $16) 52... Qb4 $1 $14 {[%emt 0:00:51]} 53. Qd7 {[%emt 0:01:04]} Kg7 {[%emt 0:00:45]} 54. Qc8 {[%emt 0:00:17]} Qd6 {[%emt 0:00:09]} 55. Qc3 {[%emt 0:00:24]} Kf7 {[%emt 0:00:15]} (55... Qa6 $16 56. Qc6 Qa3) 56. Qb3 {[%emt 0:00:17]} (56. Qa5 $1 $18 {is the precise move to win.}) 56... Kg7 $16 {[%emt 0:00:07]} 57. Ba7 {[%emt 0:00:06]} Kh7 {[%emt 0:00:36]} 58. Qb7 {[%emt 0:02:13]} Qa3 {[%emt 0:00:19]} 59. Bf2 {[%emt 0:00:52]} Kg7 {[%emt 0:00:15]} 60. Qa7 {[%emt 0:00:26]} Qb4 {[%emt 0:00:12]} 61. Kh3 {[%emt 0:00:21]} Kf7 {[%emt 0:00:25]} 62. Qc7 {[%emt 0:00:23]} Qa3 {[%emt 0:01:10]} 63. Kg2 {[%emt 0:00:14]} Qb4 {[%emt 0:00:08]} 64. Qc2 {[%emt 0:00:26]} Qa3 {[%emt 0:00:24]} 65. Bb6 {[%emt 0:00:12]} Qb4 {[%emt 0:00:26]} 66. Bc7 {[%emt 0:00:42]} (66. Bg1 $16) 66... Kg7 {[%emt 0:00:24]} (66... Bc5 $11 {remains equal.}) 67. Qa2 {[%emt 0:00:49]} (67. Qd1 $1 $16 {aiming for d6.} Bd6 68. Bxd6 Qxd6 69. Qd2) 67... Qc5 $14 {[%emt 0:00:15]} 68. Bb8 {[%emt 0:00:18]} Qb4 {[%emt 0:00:23]} 69. Ba7 {[%emt 0:01:05]} Bd6 {[%emt 0:00:34]} 70. Be3 {[%emt 0:00:21]} Be7 {[%emt 0:00:41]} 71. Qc2 {[%emt 0:00:32]} Qa3 {[%emt 0:00:16]} 72. Kf2 {[%emt 0:00:31]} Qb4 {[%emt 0:00:16]} 73. Ke2 {[%emt 0:00:50]} Qb5+ {[%emt 0:00:12]} 74. Qd3 {[%emt 0:00:08]} Qb4 {[%emt 0:00:09]} 75. Bd2 {[%emt 0:00:24]} Qc5 {[%emt 0:00:14]} 76. Qc3 {[%emt 0:00:10]} Qd6 {[%emt 0:00:53]} 77. Be3 {[%emt 0:00:18]} Kf7 {[%emt 0:00:23]} (77... Qa6+ $14 78. Kf2 Qa2+ 79. Kg1 Kf7) 78. Kf2 {[%emt 0:00:04]} (78. Qa5 $1 $18) 78... Kg7 {[%emt 0:00:07]} (78... Qb8 $1 $14 79. Kg2 Qb7) 79. Kg2 {[%emt 0:00:07]} (79. Qa5 $1 $18) 79... Kf7 {[%emt 0:00:06]} (79... Qa6 $14 80. Qc7 Kf8 81. Qb8+ Kf7) 80. Qb2 {[%emt 0:00:16]} (80. Qa5 $1 $18) 80... Kg7 {[%emt 0:00:28]} 81. Ba7 {[%emt 0:00:32]} Kf7 {[%emt 0:02:01]} (81... Qa6 $14) 82. Kf2 {[%emt 0:01:20]} (82. Qa2 $1 $18) 82... Kg7 {[%emt 0:00:04]} 83. Kg1 {[%emt 0:00:07]} Kf7 {[%emt 0:00:04]} (83... Qc7 $14 84. Qb6 Qc1+ 85. Kg2 Qd2+ 86. Qf2 Qa5) 84. Kg2 {[%emt 0:00:02]} (84. Qa2 $1 $16) 84... Kg7 {[%emt 0:00:07]} 85. Bb8 {[%emt 0:00:16]} Qc5 {[%emt 0:00:46]} 86. Qb7 {[%emt 0:00:36]} Kf8 {[%emt 0:01:51]} (86... Qc2+ $5 87. Kh3 Qd1 88. Qxe7+ Kg6 89. Qe8+ Kg7 90. Qe7+ $11) 87. Qc7 {[%emt 0:01:23]} Qb5 {[%emt 0:01:00]} 88. Ba7 {[%emt 0:01:12] Against Bc5} Qb2+ {[%emt 0:00:11]} 89. Bf2 {[%emt 0:00:23]} Qb4 {[%emt 0:00:07]} 90. Qc8+ {[%emt 0:00:11]} Kg7 $1 {[%emt 0:00:06]} 91. Qc2 {[%emt 0:00:41]} Qa3 {[%emt 0:00:17]} ({Better is} 91... Bd6 $14 92. Qc6 Bf8 93. Qc7+ Kg6) 92. Be1 {[%emt 0:00:28]} (92. f4 $1 $16 {[%cal Rf4e5]}) 92... Kf7 {[%emt 0:00:22]} 93. Qe2 $36 {[%emt 0:00:20][%mdl 2048] Black is under pressure.} Qc5 {[%emt 0:00:21]} 94. Bf2 {[%emt 0:00:23]} Qb4 {[%emt 0:00:39]} 95. Qe1 {[%emt 0:00:06]} Qa3 {[%emt 0:00:08]} 96. Qe3 {[%emt 0:00:01]} Qd6 {[%emt 0:00:17] [#]} (96... Qb4 $1 $14 97. Qc1 Qa5) 97. Be1 {[%emt 0:00:05]} ({White must play} 97. Qb6 $1 $16 {[%cal Rb6d6]}) 97... Qa3 $2 {[%emt 0:00:11][%mdl 8192] [#]} (97... Qd7 $11 {and Black has nothing to worry.}) 98. Qxa3 $1 {[%emt 0:00:07] Weighted Error Value: White=0.24 (precise) /Black=0.16 (very precise)   Loses game:     	---       	Black=2      Mistake:       	White=14    	Black=12     Inaccurate:     	White=9     	Black=5      OK:         	White=19    	Black=25     Best:        	White=4     	Black=2      Strong:       	White=1     	Black=3      Brilliant:      	White=1     	---} 1-0

[Event "Silves Open 2025"]
[Site "Fissul"]
[Date "2025.03.03"]
[Round "4.11"]
[White "Goncalves, Samuel Jesus P"]
[Black "Paiva, Manuel Maria Fonseca"]
[Result "1-0"]
[Annotator "TA"]
[ECO "A11"]
[WhiteElo "2280"]
[BlackElo "1904"]
[PlyCount "78"]
[EventDate "2025.03.03"]
[EventType "swiss"]
[EventCountry "POR"]
[SourceTitle "playchess.com"]
[Source "ChessBase"]
[SourceQuality "1"]
[TimeControl "5400+30"]

{[%evp 13,78,4,5,5,0,0,75,-26,-18,-19,-20,-52,-45,-44,-22,-52,-18,-26,-18,-22,-13,-13,-27,-27,31,19,78,59,90,92,100,96,126,159,222,214,325,255,407,197,183,175,179,162,189,183,198,-66,-43,-35,-32,-320,223,203,221,204,204,220,220,204,496,502,443,448,494,493,432]} 1. Nf3 {[%emt 0:00:20]} d5 {[%emt 0:01:12]} 2. e3 {[%emt 0:00:11]} Nf6 {[%emt 0:01:33]} 3. c4 {[%emt 0:00:09]} e6 {[%emt 0:01:12]} 4. Nc3 {[%emt 0:00:16]} Bd6 {[%emt 0:02:55]} 5. b3 {[%emt 0:00:42]} O-O {[%emt 0:00:27]} 6. Bb2 {[%emt 0:00:39]} c6 {[%emt 0:01:20]} 7. Qc2 {[%emt 0:01:29]} Nbd7 {[%emt 0:01:33]} 8. Rc1 {[%emt 0:05:20] A11: English Opening: 1...c6.} Re8 {[%emt 0:00:59]} 9. Be2 {[%emt 0:05:21]} b6 {[%emt 0:02:32] [#]} (9... e5 $11) 10. Nd4 $146 {[%emt 0:17:36]} (10. cxd5 $1 $16 cxd5 11. Nb5) (10. d4 dxc4 11. Bxc4 Bb4 12. O-O Bxc3 13. Bxc3 a5 14. Bb2 b5 15. Bd3 Bb7 16. Rfd1 {1-0 Fegebank,F (1906)-Marquardt,R (1828) Hamburg-ch Seniors 22nd 2015 (7)}) 10... Bb7 $11 {[%emt 0:10:51]} 11. cxd5 {[%emt 0:04:47]} exd5 {[%emt 0:00:13]} 12. Nf5 {[%emt 0:01:16]} Bf8 {[%emt 0:00:15]} 13. d4 {[%emt 0:01:22]} g6 {[%emt 0:02:05]} 14. Ng3 {[%emt 0:00:12]} Bd6 {[%emt 0:08:57]} 15. O-O {[%emt 0:00:21]} h5 {[%emt 0:00:51]} 16. Rfd1 {[%emt 0:00:33]} h4 {[%emt 0:06:43]} 17. Nf1 {[%emt 0:00:08]} Qe7 {[%emt 0:09:22]} 18. Nd2 {[%emt 0:05:28]} Qe6 {[%emt 0:07:36]} (18... Rac8 $11) 19. h3 {[%emt 0:03:42]} Kg7 {[%emt 0:08:37]} (19... Qe7 $11 {remains equal.}) 20. Re1 {[%emt 0:05:05][%cal Oe3e4]} Nf8 {[%emt 0:04:49][%cal Bd7f8,Bf8h7,Bh7g5][%mdl 32]} 21. Nf3 {[%emt 0:05:03]} N8h7 {[%emt 0:01:50]} 22. Bd3 {[%emt 0:01:28][%cal Oe3e4]} (22. Nxh4 Ng5 23. Bf1 Rh8 24. Nxg6 fxg6 $19) 22... Qd7 {[%emt 0:03:29]} 23. Nxh4 {[%emt 0:18:03]} Rg8 {[%emt 0:03:12]} (23... Ng5 $16) 24. Nf3 $18 {[%emt 0:03:11]} Rh8 {[%emt 0:03:18]} (24... Rae8 25. Ne5 Bxe5) 25. Ne5 {[%emt 0:02:07]} Qe6 {[%emt 0:02:08]} (25... Qe7 {was necessary.} 26. Ne2 c5) 26. Ne2 {[%emt 0:01:11]} (26. Bxg6 $142 fxg6 27. Qxg6+ Kf8 28. Qh6+ Kg8 29. e4 Bxe5 30. Qg6+ (30. dxe5 Qxe5 31. Qg6+ Kf8 $18) 30... Kf8 31. dxe5 Qxe5 32. Na4) 26... Ng5 {[%emt 0:02:08][%cal Og5h3]} 27. Nf4 {[%emt 0:06:25]} (27. Nxc6 Nxh3+ 28. Kf1 (28. gxh3 Bh2+ 29. Kh1 Qxh3) 28... Ng4 $19) 27... Qe8 {[%emt 0:00:02]} 28. a3 {[%emt 0:03:41]} (28. Nxc6 $2 Rc8 29. Qd2 (29. Bb5 $2 a6 $19) 29... Bxc6 $19 (29... Rxc6 $2 30. Bb5 $17)) 28... Rh6 {[%emt 0:02:52]} 29. Qe2 {[%emt 0:00:55]} (29. Nxc6 $2 Rc8 30. Bb5 a6 $19) 29... a5 {[%emt 0:04:10]} 30. Ng4 $2 {[%emt 0:01:09]} ({White should try} 30. f3 $18) 30... Nxg4 $15 {[%emt 0:00:56]} 31. Qxg4 {[%emt 0:00:07]} Qe7 {[%emt 0:00:28][%cal Oa8h8]} 32. e4 $2 {[%emt 0:05:14][%mdl 8192]} Bxf4 $4 {[%emt 0:01:30][%mdl 8192]} (32... Bc8 $19 33. exd5 Qxe1+ (33... Bxg4 34. Rxe7 Bxe7 35. hxg4 $17) 34. Rxe1 Bxg4) 33. Qxf4 $18 {[%emt 0:00:35] and exd5 should not be overlooked} Rxh3 {[%emt 0:01:35] Threatens to win with ...Ne6.} 34. exd5 {[%emt 0:01:32]} Rah8 {[%emt 0:00:01][%csl Gh8][%cal Rh3h1] [#]} 35. f3 $1 {[%emt 0:00:01]} (35. Rxe7 $2 Rh1#) (35. gxh3 Nxh3+ 36. Kf1 Nxf4 37. f3 Qg5 (37... Rh1+ 38. Kf2 Rh2+ 39. Kg1 Qg5+ 40. Kxh2 Qg2#) 38. Kf2 Rh2+ (38... Nxd3+ 39. Ke2 Nxb2 40. Rg1 Rh2+ 41. Rg2 Qxg2+ 42. Ke3 Qd2+ 43. Ke4 Re2#) 39. Ke3 Nxd5+ 40. Ke4 Nf6#) 35... Nxf3+ {[%emt 0:04:28]} 36. Qxf3 {[%emt 0:01:18]} ({Less strong is} 36. gxf3 Rh1+ 37. Kg2 (37. Kf2 R1h2+ 38. Kg1 Rh1+ 39. Kg2 R8h2+ 40. Qxh2 Rxh2+ 41. Kxh2 Qh4+ 42. Kg2 Bc8 $14) 37... Rxe1 38. dxc6 (38. d6 Re2+ 39. Kg1 Qe3+ 40. Qxe3 Rxe3 $11) 38... Re2+ 39. Bxe2 Qxe2+ 40. Kg1 Bxc6 (40... Qxb2 $2 {too greedy.} 41. cxb7 Re8 42. d5 $18) 41. Qe5+ (41. Rxc6 $2 Qe1+ 42. Kg2 Qh1+ 43. Kf2 Rh2+ $19) 41... Qxe5 42. dxe5 Rc8 $11) 36... Rh1+ $2 {[%emt 0:00:32]} (36... Qg5 37. Qe4 cxd5 38. Qe5+ Qxe5 39. dxe5 Rxd3) 37. Kf2 {[%emt 0:00:05] White is clearly winning.} Qh4+ {[%emt 0:00:03]} 38. Qg3 {[%emt 0:00:39]} Qf6+ {[%emt 0:00:32]} 39. Ke2 {[%emt 0:00:16]} Re8+ {[%emt 0:02:44] Weighted Error Value: White=0.48/Black=0.52  Loses game:     	White=1     	---        Missed win:     	White=1     	Black=1      Mistake:       	White=2     	Black=7      Inaccurate:     	White=2     	Black=3      OK:         	White=12    	Black=10     Best:        	White=1     	Black=3      Strong:       	White=1     	---} 1-0

[Event "Silves Open 2025"]
[Site "Fissul"]
[Date "2025.03.03"]
[Round "4.12"]
[White "Vasques, Antonio Pedro Freixi"]
[Black "Santos, Jose P"]
[Result "1/2-1/2"]
[Annotator "TA"]
[ECO "B15"]
[WhiteElo "2246"]
[BlackElo "2273"]
[PlyCount "100"]
[EventDate "2025.03.03"]
[EventType "swiss"]
[EventCountry "POR"]
[SourceTitle "playchess.com"]
[Source "ChessBase"]
[SourceQuality "1"]
[TimeControl "5400+30"]

{[%evp 18,100,74,71,54,64,75,32,92,104,90,19,83,69,130,103,175,47,129,-64,132,120,108,99,103,62,135,141,120,111,130,96,111,123,184,165,179,184,181,0,0,0,0,-156,0,-101,0,-58,0,0,0,0,0,11,0,0,0,-258,-246,-445,-447,-456,-449,-426,-419,-370,-247,-320,-320,-320,-168,-168,-168,-168,-168,-168,-33,-33,-34,-64,-60,-67,-67,-75,-82]} 1. e4 {[%emt 0:00:04]} c6 {[%emt 0:00:12]} 2. d4 {[%emt 0:00:06]} d5 {[%emt 0:00:13]} 3. Nc3 {[%emt 0:00:08]} dxe4 {[%emt 0:00:13]} 4. Nxe4 {[%emt 0:00:08]} Nf6 {[%emt 0:00:22]} 5. Nxf6+ {[%emt 0:01:51]} exf6 {[%emt 0:00:04]} 6. c3 {[%emt 0:00:11]} Bd6 {[%emt 0:00:13]} 7. Bd3 {[%emt 0:00:08]} O-O {[%emt 0:03:00]} 8. Qc2 {[%emt 0:00:12]} Re8+ {[%emt 0:00:17]} 9. Ne2 {[%emt 0:00:07]} g6 {[%emt 0:00:06]} 10. h4 {[%emt 0:04:23][%cal Bh2h4,Bh4h5][%mdl 32]} Be6 {[%emt 0:07:59] B15: Caro-Kann: 3 Nc3: 3...g6 and 3...dxe4 4 Nxe4 Nf6 5 Nxf6+ exf6.} 11. h5 {[%emt 0:02:57][%cal Rh5g6]} f5 {[%emt 0:04:18]} 12. Bd2 {[%emt 0:04:40]} Bd5 {[%emt 0:03:21]} (12... Nd7 $14) 13. f3 $16 {[%emt 0:01:44]} b5 {[%emt 0:01:40]} 14. b3 $146 {[%emt 0:08:29]} (14. O-O-O $16) ({Predecessor:} 14. Rh3 Nd7 15. O-O-O Nf8 16. Kb1 a5 17. Nf4 Bxf4 18. Bxf4 Qd7 19. Be5 a4 20. Rg3 {1-0 Bielczyk,J (2365)-Ledwon,E (2285) POL-chT reg Poland 1995}) 14... Na6 {[%emt 0:17:28]} (14... Nd7 $11 {remains equal.}) 15. O-O-O {[%emt 0:15:45]} Rb8 {[%emt 0:00:55]} (15... Nc7 $14) 16. Nf4 {[%emt 0:01:32]} Nc7 {[%emt 0:00:46]} (16... Qf6 $16 {was worth a try.}) 17. Rh3 {[%emt 0:02:27]} (17. hxg6 $18 fxg6 18. Nxd5 Nxd5 19. g4) 17... Qf6 {[%emt 0:01:21]} (17... Ne6 $14 18. Nxe6 Ba3+ (18... Rxe6 19. Rdh1 $14) 19. Kb1 Rxe6) 18. Rdh1 $2 {[%emt 0:07:41]} (18. hxg6 $1 $16 fxg6 19. Kb1) 18... Ne6 $2 {[%emt 0:31:32]} (18... g5 $15 {stays ahead.} 19. Ne2 g4 20. fxg4 Bxg2) 19. Nxe6 $1 {[%emt 0:21:17]} Bxe6 {[%emt 0:00:16]} 20. hxg6 {[%emt 0:00:17] White has strong rooks and is better} hxg6 {[%emt 0:00:06]} 21. Kb1 {[%emt 0:02:02]} Kf8 {[%emt 0:00:16]} (21... Bc4 $1 $14) 22. Bh6+ {[%emt 0:06:53]} Ke7 {[%emt 0:02:51]} 23. f4 {[%emt 0:00:06]} Kd7 {[%emt 0:00:06]} 24. Bg5 {[%emt 0:00:05]} Qg7 {[%emt 0:00:04]} 25. Rh7 {[%emt 0:00:14]} Qf8 {[%emt 0:00:04]} (25... Qg8 $16) 26. c4 $18 {[%emt 0:07:51][%cal Og2g4]} bxc4 {[%emt 0:02:09]} 27. Bxc4 {[%emt 0:00:04]} Bd5 {[%emt 0:00:07]} 28. Rc1 $2 {[%emt 0:04:39]} (28. Bxd5 $1 $18 cxd5 29. g4) 28... Be4 $11 {[%emt 0:00:26]} 29. Bd3 {[%emt 0:00:03]} Bd5 {[%emt 0:00:17]} 30. g4 $2 {[%emt 0:01:00] [#]} Qg8 $2 {[%emt 0:00:43]} (30... Ba3 $1 $17 {[%cal Ra3c1]} 31. Rd1 Qb4) 31. Rh2 {[%emt 0:03:37]} (31. Rh6 $11) 31... Ba3 {[%emt 0:01:09]} ({Better is} 31... fxg4 $17 {White must now prevent ...Qg7.} 32. Bc4 Be4) 32. Rf1 {[%emt 0:00:20]} (32. gxf5 $11 Bxc1 33. Qxc1) 32... f6 {[%emt 0:01:11]} (32... Re3 $1 $15 33. gxf5 f6 34. Bxf6 (34. Qd2 Rxd3 35. Qxd3 Bc4 $15) 34... Bxb3 35. axb3 Rxb3+ 36. Ka1 Bb2+ (36... Rexd3 37. Rb1 $17) (36... Rb2 $2 37. Qc4 $18) 37. Ka2 Rexd3 38. Rh7+ (38. Rh8 Ra3+ 39. Kxb2 Qa2+ 40. Kc1 Qa1+ 41. Qb1 Rac3#) 38... Qxh7) 33. Bxf6 {[%emt 0:01:16]} Bxb3 $1 {[%emt 0:00:09]} 34. axb3 {[%emt 0:00:18]} Rxb3+ {[%emt 0:00:05]} 35. Ka1 {[%emt 0:00:03]} Bb2+ {[%emt 0:00:06]} 36. Qxb2 $1 {[%emt 0:00:29]} Rxb2 {[%emt 0:00:14]} 37. Rxb2 {[%emt 0:00:18][%mdl 8192] [#]} (37. Kxb2 $11 fxg4 38. Be5) 37... Qf8 $1 $19 {[%emt 0:01:49]} 38. g5 $2 {[%emt 0:04:13]} (38. Kb1 Qxf6 39. gxf5) 38... Qa3+ {[%emt 0:00:14]} 39. Ra2 {[%emt 0:00:04]} Qc3+ {[%emt 0:00:20]} (39... Qxd3 $2 40. Rxa7+ Kc8 41. Rh1 Qc3+ 42. Kb1 $19) 40. Rb2 {[%emt 0:00:06]} Qxd3 {[%emt 0:00:14]} 41. Rh1 {[%emt 0:00:52]} Re2 {[%emt 0:02:06]} ({Don't take} 41... Qa3+ 42. Kb1 $19) 42. Rh7+ {[%emt 0:00:53]} Kd6 {[%emt 0:00:07] ( -> ...Qa3+)} 43. Rxe2 {[%emt 0:01:05] Hoping for Be5+.} Qxe2 {[%emt 0:00:04][%mdl 4096] Endgame KQ-KRB} (43... Qd1+ $142 44. Kb2 Qxe2+ 45. Kc3 a5) 44. Be5+ {[%emt 0:00:06]} Kd5 {[%emt 0:00:10]} 45. Rxa7 {[%emt 0:00:03]} Kc4 {[%emt 0:00:45]} 46. Rb7 {[%emt 0:00:58]} c5 {[%emt 0:02:05]} (46... Qe1+ $19 47. Ka2 Qe2+ 48. Ka1 Qc2) 47. dxc5 $15 {[%emt 0:00:53]} Kxc5 {[%emt 0:00:21] ( -> ...Qa6+)} 48. Rb2 {[%emt 0:00:25]} Qd1+ {[%emt 0:00:16]} 49. Ka2 {[%emt 0:00:52]} Kc4 {[%emt 0:00:32]} 50. Rb8 {[%emt 0:00:36]} Qd2+ {[%emt 0:01:14] What a bad dream for Black.   Weighted Error Value: White=0.52/Black=0.45  Loses game:     	White=1     	---        Missed win:     	White=1     	---        Mistake:       	White=7     	Black=13     Inaccurate:     	White=3     	Black=1      OK:         	White=10    	Black=9      Best:        	White=9     	Black=5      Strong:       	White=2     	Black=2} ({Much weaker is} 50... Qa4+ 51. Kb2 $11) 1/2-1/2